fUSD/lending_fUSD_20250109
["ID","MTS","AMOUNT","RATE_DAILY","PERIOD"]
[348254549,1736421054065,-500.0,0.00010545,2]
[348254550,1736421054075,-500.0,0.00010545,2]
[348254551,1736421054084,-500.0,0.00010545,2]
[348254552,1736421054093,-500.0,0.00010545,2]
[348254553,1736421054102,-500.0,0.00010545,2]
[348254554,1736421054111,-500.0,0.00010545,2]
[348254555,1736421054119,-500.0,0.00010545,2]
[348254556,1736421054128,-500.0,0.00010545,2]
[348254557,1736421054277,-500.0,0.00010545,2]
[348254558,1736421054287,-500.0,0.00010545,2]
[348254559,1736421054299,-500.0,0.00010545,2]
[348254560,1736421054309,-500.0,0.00010545,2]
[348254561,1736421054318,-515.7,0.00010545,2]
[348254562,1736421054328,-500.0,0.00010545,2]
[348254563,1736421054337,-463.57683808,0.00010545,2]
[348254564,1736421054348,-500.0,0.00010545,2]
[348254565,1736421054357,-500.0,0.00010545,2]
[348254566,1736421054366,-500.0,0.00010545,2]
[348254567,1736421054375,-263.98,0.00010545,2]
[348254568,1736421054385,-500.0,0.00010545,2]
[348254569,1736421054394,-500.0,0.00010545,2]
[348254570,1736421054403,-500.0,0.00010545,2]
[348254571,1736421054414,-569.34,0.00010545,2]
[348254572,1736421054424,-500.0,0.00010545,2]
[348254573,1736421054435,-500.0,0.00010545,2]
[348254574,1736421054447,-500.0,0.00010545,2]
[348254575,1736421054456,-500.0,0.00010545,2]
[348254576,1736421054465,-500.0,0.00010545,2]
[348254577,1736421054475,-500.0,0.00010545,2]
[348254578,1736421054483,-500.0,0.00010545,2]
[348254579,1736421054493,-500.0,0.00010545,2]
[348254580,1736421054502,-500.0,0.00010545,2]
[348254581,1736421054511,-500.0,0.00010545,2]
[348254582,1736421054519,-500.0,0.00010545,2]
[348254583,1736421054528,-500.0,0.00010545,2]
[348254584,1736421054538,-500.0,0.00010545,2]
[348254585,1736421054547,-500.0,0.00010545,2]
[348254586,1736421054556,-500.0,0.00010545,2]
[348254587,1736421054566,-500.0,0.00010545,2]
[348254588,1736421054575,-500.0,0.00010545,2]
[348254589,1736421054584,-500.0,0.00010545,2]
[348254590,1736421054593,-500.0,0.00010545,2]
[348254591,1736421054602,-500.0,0.00010545,2]
[348254592,1736421054611,-500.0,0.00010545,2]
[348254593,1736421054620,-500.0,0.00010545,2]
[348254594,1736421054629,-500.0,0.00010545,2]
[348254595,1736421054638,-500.0,0.00010545,2]
[348254596,1736421054647,-500.0,0.00010545,2]
[348254597,1736421054657,-500.0,0.00010545,2]
[348254598,1736421054666,-500.0,0.00010545,2]
[348254599,1736421054675,-500.0,0.00010545,2]
[348254600,1736421054684,-500.0,0.00010545,2]
[348254601,1736421054693,-500.0,0.00010545,2]
[348254602,1736421054702,-178.80076514,0.00010545,2]
[348254603,1736421054711,-500.0,0.00010545,2]
[348254604,1736421054721,-500.0,0.00010545,2]
[348254605,1736421054730,-500.0,0.00010545,2]
[348254606,1736421054740,-500.0,0.00010545,2]
[348254607,1736421054749,-500.0,0.00010545,2]
[348254608,1736421054758,-400.81384962,0.00010545,2]
[348254609,1736421054768,-500.0,0.00010545,2]
[348254610,1736421054778,-500.0,0.00010545,2]
[348254611,1736421054787,-500.0,0.00010545,2]
[348254612,1736421054796,-500.0,0.00010545,2]
[348254613,1736421054806,-500.0,0.00010545,2]
[348254614,1736421054816,-500.0,0.00010545,2]
[348254615,1736421054827,-500.0,0.00010545,2]
[348254616,1736421054837,-500.0,0.00010545,2]
[348254617,1736421054846,-500.0,0.00010545,2]
[348254618,1736421054856,-550.68,0.00010545,2]
[348254619,1736421054865,-500.0,0.00010545,2]
[348254620,1736421054875,-500.0,0.00010545,2]
[348254621,1736421054885,-648.74,0.00010545,2]
[348254622,1736421054894,-500.0,0.00010545,2]
[348254623,1736421054904,-500.0,0.00010545,2]
[348254624,1736421054914,-500.0,0.00010545,2]
[348254625,1736421054923,-1610.37,0.00010545,2]
[348254626,1736421054933,-500.0,0.00010545,2]
[348254627,1736421054942,-500.0,0.00010545,2]
[348254628,1736421054951,-500.0,0.00010545,2]
[348254629,1736421054961,-500.0,0.00010545,2]
[348254630,1736421054970,-500.0,0.00010545,2]
[348254631,1736421054979,-500.0,0.00010545,2]
[348254632,1736421054988,-500.0,0.00010545,2]
[348254633,1736421054998,-1171.77,0.00010545,2]
[348254634,1736421055007,-500.0,0.00010545,2]
[348254635,1736421055017,-501.21156605,0.00010545,2]
[348254636,1736421055026,-500.0,0.00010545,2]
[348254637,1736421055035,-500.0,0.00010545,2]
[348254638,1736421055045,-500.0,0.00010545,2]
[348254639,1736421055055,-500.0,0.00010545,2]
[348254640,1736421055064,-500.0,0.00010545,2]
[348254641,1736421055073,-166.31,0.00010545,2]
[348254642,1736421055082,-500.0,0.00010545,2]
[348254643,1736421055091,-1152.67,0.00010545,2]
[348254644,1736421055100,-500.0,0.00010545,2]
[348254645,1736421055109,-502.55622211,0.00010545,2]
[348254646,1736421055118,-500.0,0.00010545,2]
[348254647,1736421055127,-500.0,0.00010545,2]
[348254648,1736421055136,-500.0,0.00010545,2]
[348254649,1736421055146,-500.0,0.00010545,2]
[348254650,1736421055156,-500.0,0.00010545,2]
[348254651,1736421055165,-500.0,0.00010545,2]
[348254652,1736421055174,-500.0,0.00010545,2]
[348254653,1736421055183,-500.0,0.00010545,2]
[348254654,1736421055195,-201.12237948,0.00010545,2]
[348254655,1736421055204,-500.0,0.00010545,2]
[348254656,1736421055214,-219.91708801,0.00010545,2]
[348254657,1736421055224,-500.0,0.00010545,2]
[348254658,1736421055234,-500.0,0.00010545,2]
[348254659,1736421055246,-500.0,0.00010545,2]
[348254660,1736421055256,-500.0,0.00010545,2]
[348254661,1736421055265,-500.0,0.00010545,2]
[348254662,1736421055275,-500.0,0.00010545,2]
[348254663,1736421055286,-500.0,0.00010545,2]
[348254664,1736421055295,-500.0,0.00010545,2]
[348254665,1736421055304,-500.0,0.00010545,2]
[348254666,1736421055315,-500.0,0.00010545,2]
[348254667,1736421055325,-500.0,0.00010545,2]
[348254668,1736421055335,-500.0,0.00010545,2]
[348254669,1736421055344,-500.0,0.00010545,2]
[348254670,1736421055354,-317.57966019,0.00010545,2]
[348254671,1736421055364,-228.38,0.00010545,2]
[348254672,1736421055373,-500.0,0.00010545,2]
[348254673,1736421055382,-500.0,0.00010545,2]
[348254674,1736421055391,-500.0,0.00010545,2]
[348254675,1736421055400,-500.0,0.00010545,2]
[348254676,1736421055409,-500.0,0.00010545,2]
[348254677,1736421055419,-500.0,0.00010545,2]
[348254678,1736421055428,-500.0,0.00010545,2]
[348254679,1736421055437,-500.0,0.00010545,2]
[348254680,1736421055447,-500.0,0.00010545,2]
[348254681,1736421055457,-500.0,0.00010545,2]
[348254682,1736421055466,-500.0,0.00010545,2]
[348254683,1736421055475,-529.76046883,0.00010545,2]
[348254684,1736421055486,-500.0,0.00010545,2]
[348254685,1736421055495,-500.0,0.00010545,2]
[348254686,1736421055505,-500.0,0.00010545,2]
[348254687,1736421055514,-500.0,0.00010545,2]
[348254688,1736421055523,-500.0,0.00010545,2]
[348254689,1736421055533,-500.0,0.00010545,2]
[348254690,1736421055542,-637.56355537,0.00010545,2]
[348254691,1736421055552,-500.0,0.00010545,2]
[348254692,1736421055561,-500.0,0.00010545,2]
[348254693,1736421055570,-500.0,0.00010546,2]
[348254694,1736421055579,-500.0,0.00010546,2]
[348254695,1736421055588,-500.0,0.00010546,2]
[348254696,1736421055598,-500.0,0.00010546,2]
[348254697,1736421055607,-500.0,0.00010546,2]
[348254698,1736421055616,-500.0,0.00010546,2]
[348254699,1736421055626,-641.85,0.00010546,2]
[348254700,1736421055634,-500.0,0.00010546,2]
[348254701,1736421055652,-500.0,0.00010546,2]
[348254702,1736421055666,-500.0,0.00010546,2]
[348254703,1736421055677,-500.0,0.00010546,2]
[348254704,1736421055692,-500.0,0.00010546,2]
[348254705,1736421055706,-570.63,0.00010546,2]
[348254706,1736421055721,-500.0,0.00010546,2]
[348254707,1736421055734,-500.0,0.00010546,2]
[348254708,1736421055746,-500.0,0.00010546,2]
[348254709,1736421055758,-447.58751269,0.00010546,2]
[348254710,1736421055772,-500.0,0.00010546,2]
[348254711,1736421055786,-512.75,0.00010546,2]
[348254712,1736421055800,-500.0,0.00010546,2]
[348254713,1736421055814,-500.0,0.00010546,2]
[348254714,1736421055828,-500.0,0.00010546,2]
[348254715,1736421055841,-500.0,0.00010546,2]
[348254716,1736421055854,-681.85,0.00010546,2]
[348254717,1736421055869,-500.0,0.00010546,2]
[348254718,1736421055884,-500.0,0.00010546,2]
[348254719,1736421055897,-500.0,0.00010546,2]
[348254720,1736421055911,-603.35,0.00010546,2]
[348254721,1736421055925,-572.30812229,0.00010546,2]
[348254722,1736421055938,-500.0,0.00010546,2]
[348254723,1736421055952,-349.6613636,0.00010546,2]
[348254724,1736421055965,-500.0,0.00010546,2]
[348254725,1736421055976,-500.0,0.00010546,2]
[348254726,1736421055988,-500.0,0.00010546,2]
[348254727,1736421056004,-500.0,0.00010546,2]
[348254728,1736421056019,-588.53648734,0.00010546,2]
[348254729,1736421056030,-500.0,0.00010546,2]
[348254730,1736421056041,-500.0,0.00010546,2]
[348254731,1736421056056,-538.21,0.00010546,2]
[348254732,1736421056070,-5000.0,0.00010546,2]
[348254733,1736421056082,-642.23,0.00010546,2]
[348254734,1736421056093,-500.0,0.00010546,2]
[348254735,1736421056105,-490.0,0.00010546,2]
[348254736,1736421056116,-723.35,0.00010546,2]
[348254737,1736421056130,-1824.3,0.00010546,2]
[348254738,1736421056143,-630.51,0.00010546,2]
[348254739,1736421056155,-740.84,0.00010546,2]
[348254740,1736421056168,-990.37,0.00010546,2]
[348254741,1736421056180,-500.0,0.00010546,2]
[348254742,1736421056192,-1761.09,0.00010546,2]
[348254743,1736421056204,-500.0,0.00010546,2]
[348254744,1736421056216,-638.43,0.00010546,2]
[348254745,1736421056227,-603.26,0.00010546,2]
[348254746,1736421056240,-1052.45,0.00010546,2]
[348254747,1736421056252,-461.26,0.00010546,2]
[348254748,1736421056264,-703.34,0.00010546,2]
[348254749,1736421056276,-689.45,0.00010546,2]
[348254750,1736421056289,-500.0,0.00010546,2]
[348254751,1736421056301,-1767.37,0.00010546,2]
[348254752,1736421056313,-500.0,0.00010546,2]
[348254753,1736421056326,-500.0,0.00010546,2]
[348254754,1736421056338,-658.88,0.00010546,2]
[348254755,1736421056349,-649.65,0.00010546,2]
[348254756,1736421056361,-500.0,0.00010546,2]
[348254757,1736421056372,-1339.62,0.00010546,2]
[348254758,1736421056384,-500.0,0.00010546,2]
[348254759,1736421056396,-508.59,0.00010546,2]
[348254760,1736421056408,-859.44,0.00010546,2]
[348254761,1736421056421,-611.84,0.00010547,2]
[348254762,1736421056433,-773.7,0.00010547,2]
[348254763,1736421056444,-953.76,0.00010547,2]
[348254764,1736421056456,-511.51,0.00010547,2]
[348254765,1736421056467,-500.0,0.00010547,2]
[348254766,1736421056479,-500.0,0.00010547,2]
[348254767,1736421056490,-500.0,0.00010547,2]
[348254768,1736421056502,-1296.5,0.00010547,2]
[348254769,1736421056514,-500.0,0.00010547,2]
[348254770,1736421056525,-500.0,0.00010547,2]
[348254771,1736421056537,-500.0,0.00010547,2]
[348254772,1736421056550,-500.0,0.00010547,2]
[348254773,1736421056563,-532.94,0.00010547,2]
[348254774,1736421056575,-500.0,0.00010547,2]
[348254775,1736421056588,-500.0,0.00010547,2]
[348254776,1736421056601,-500.0,0.00010547,2]
[348254777,1736421056612,-500.0,0.00010547,2]
[348254778,1736421056624,-500.0,0.00010547,2]
[348254779,1736421056635,-410.98364749,0.0001057,2]
[348254780,1736421056647,-488.94281257,0.00010624,2]
[348254781,1736421056658,-488.94281257,0.00010728,2]
[348254782,1736421056670,-167.12,0.0001077,2]
[348254783,1736421056681,-500.0,0.00010818,2]
[348254784,1736421056692,-560.68,0.00010818,2]
[348254785,1736421056705,-500.0,0.00010818,2]
[348254786,1736421056717,-500.0,0.00010818,2]
[348254787,1736421056729,-593.63,0.00010818,2]
[348254788,1736421056741,-500.0,0.00010818,2]
[348254789,1736421056753,-903.9,0.00010818,2]
[348254790,1736421056764,-500.0,0.00010818,2]
[348254791,1736421056776,-527.28,0.00010818,2]
[348254792,1736421056787,-500.0,0.00010818,2]
[348254793,1736421056799,-550.51,0.00010818,2]
[348254794,1736421056811,-883.08,0.00010818,2]
[348254795,1736421056823,-861.12,0.00010818,2]
[348254796,1736421056835,-961.9,0.00010818,2]
[348254797,1736421056847,-500.0,0.00010818,2]
[348254798,1736421056859,-594.7,0.00010818,2]
[348254799,1736421056873,-1708.05,0.00010818,2]
[348254800,1736421056885,-556.715961,0.00010818,2]
[348254801,1736421056897,-556.715961,0.00010818,2]
[348254802,1736421056908,-596.41,0.00010818,2]
[348254803,1736421056920,-500.0,0.00010818,2]
[348254804,1736421056932,-1029.63,0.00010818,2]
[348254805,1736421056943,-1499.87,0.00010818,2]
[348254806,1736421056955,-529.305701,0.00010818,2]
[348254807,1736421056966,-529.305701,0.00010818,2]
[348254808,1736421056978,-690.3,0.00010818,2]
[348254809,1736421056990,-517.95,0.00010818,2]
[348254810,1736421057001,-531.6,0.00010818,2]
[348254811,1736421057013,-500.0,0.00010818,2]
[348254812,1736421057025,-857.74,0.00010818,2]
[348254813,1736421057036,-660.56,0.00010818,2]
[348254814,1736421057048,-500.0,0.00010818,2]
[348254815,1736421057059,-500.0,0.00010818,2]
[348254816,1736421057071,-500.0,0.00010818,2]
[348254817,1736421057081,-500.0,0.00010818,2]
[348254818,1736421057093,-500.0,0.00010818,2]
[348254819,1736421057104,-1066.0,0.00010818,2]
[348254820,1736421057116,-500.0,0.00010818,2]
[348254821,1736421057128,-3317.04,0.00010818,2]
[348254822,1736421057140,-500.0,0.00010819,2]
[348254823,1736421057151,-185.45404616,0.00010819,2]
[348254824,1736421057163,-500.0,0.00010819,2]
[348254825,1736421057175,-500.0,0.00010819,2]
[348254826,1736421057187,-175.21,0.00010819,2]
[348254827,1736421057201,-500.0,0.00010819,2]
[348254828,1736421057212,-500.0,0.00010819,2]
[348254829,1736421057221,-500.0,0.00010819,2]
[348254830,1736421057231,-503.1,0.00010819,2]
[348254831,1736421057243,-500.0,0.00010819,2]
[348254832,1736421057252,-371.26382288,0.00010819,2]
[348254833,1736421057261,-508.32,0.00010819,2]
[348254834,1736421057270,-500.0,0.00010819,2]
[348254835,1736421057279,-168.89,0.00010819,2]
[348254836,1736421057289,-752.98,0.00010819,2]
[348254837,1736421057298,-500.0,0.00010819,2]
[348254838,1736421057308,-500.0,0.00010819,2]
[348254839,1736421057320,-573.65,0.00010819,2]
[348254840,1736421057330,-500.0,0.00010819,2]
[348254841,1736421057340,-545.9,0.00010819,2]
[348254842,1736421057351,-343.8,0.00010819,2]
[348254843,1736421057362,-500.0,0.00010819,2]
[348254844,1736421057371,-500.0,0.00010819,2]
[348254845,1736421057380,-500.0,0.00010819,2]
[348254846,1736421057389,-500.0,0.00010819,2]
[348254847,1736421057644,-500.0,0.00010819,2]
[348254848,1736421057658,-500.0,0.00010819,2]
[348254849,1736421057669,-500.0,0.00010819,2]
[348254850,1736421057678,-500.0,0.00010819,2]
[348254851,1736421057688,-500.0,0.00010819,2]
[348254852,1736421057697,-500.0,0.00010819,2]
[348254853,1736421057706,-247.36,0.00010819,2]
[348254854,1736421057716,-500.0,0.00010819,2]
[348254855,1736421057725,-500.0,0.00010819,2]
[348254856,1736421057734,-500.0,0.00010819,2]
[348254857,1736421057744,-500.0,0.00010819,2]
[348254858,1736421057753,-500.0,0.00010819,2]
[348254859,1736421057763,-433.0439191,0.00010819,2]
[348254860,1736421057772,-500.0,0.00010819,2]
[348254861,1736421057781,-500.0,0.00010819,2]
[348254862,1736421057791,-500.0,0.00010819,2]
[348254863,1736421057800,-500.0,0.00010819,2]
[348254864,1736421057809,-500.0,0.00010819,2]
[348254865,1736421057819,-201.42443306,0.00010819,2]
[348254866,1736421057828,-500.0,0.00010819,2]
[348254867,1736421057839,-500.0,0.00010819,2]
[348254868,1736421057848,-182.48,0.00010819,2]
[348254869,1736421057857,-500.0,0.00010819,2]
[348254870,1736421057866,-500.0,0.00010819,2]
[348254871,1736421057876,-500.0,0.00010819,2]
[348254872,1736421057886,-500.0,0.00010819,2]
[348254873,1736421057895,-500.0,0.00010819,2]
[348254874,1736421057904,-500.0,0.00010819,2]
[348254875,1736421057913,-500.0,0.00010819,2]
[348254876,1736421057922,-500.0,0.00010819,2]
[348254877,1736421057932,-500.0,0.00010819,2]
[348254878,1736421057942,-500.0,0.00010819,2]
[348254879,1736421057954,-500.0,0.00010819,2]
[348254880,1736421057963,-500.0,0.00010819,2]
[348254881,1736421057972,-500.0,0.00010819,2]
[348254882,1736421057982,-500.0,0.00010819,2]
[348254883,1736421057991,-500.0,0.00010819,2]
[348254884,1736421058001,-300.93,0.00010819,2]
[348254885,1736421058011,-500.0,0.00010819,2]
[348254886,1736421058021,-500.0,0.00010819,2]
[348254887,1736421058031,-500.0,0.00010819,2]
[348254888,1736421058041,-292.19,0.00010819,2]
[348254889,1736421058050,-500.0,0.00010819,2]
[348254890,1736421058059,-500.0,0.00010819,2]
[348254891,1736421058069,-500.0,0.00010819,2]
[348254892,1736421058078,-500.0,0.00010819,2]
[348254893,1736421058087,-219.38,0.00010819,2]
[348254894,1736421058097,-270.19,0.00010819,2]
[348254895,1736421058106,-500.0,0.00010819,2]
[348254896,1736421058115,-500.0,0.00010819,2]
[348254897,1736421058124,-500.0,0.00010819,2]
[348254898,1736421058134,-500.0,0.00010819,2]
[348254899,1736421058144,-500.0,0.00010819,2]
[348254900,1736421058153,-610.33,0.00010819,2]
[348254901,1736421058162,-500.0,0.00010819,2]
[348254902,1736421058171,-500.0,0.00010819,2]
[348254903,1736421058181,-500.0,0.00010819,2]
[348254904,1736421058190,-500.0,0.00010819,2]
[348254905,1736421058200,-500.0,0.00010819,2]
[348254906,1736421058209,-1610.37,0.00010819,2]
[348254907,1736421058219,-500.0,0.00010819,2]
[348254908,1736421058228,-500.0,0.00010819,2]
[348254909,1736421058239,-500.0,0.00010819,2]
[348254910,1736421058249,-503.59328416,0.00010819,2]
[348254911,1736421058258,-500.0,0.00010819,2]
[348254912,1736421058268,-1171.77,0.00010819,2]
[348254913,1736421058278,-500.0,0.00010819,2]
[348254914,1736421058287,-634.44012825,0.00010819,2]
[348254915,1736421058297,-500.0,0.00010819,2]
[348254916,1736421058307,-500.0,0.00010819,2]
[348254917,1736421058318,-1152.67,0.00010819,2]
[348254918,1736421058328,-500.0,0.00010819,2]
[348254919,1736421058339,-500.0,0.00010819,2]
[348254920,1736421058348,-500.0,0.00010819,2]
[348254921,1736421058357,-484.12,0.00010819,2]
[348254922,1736421058366,-512.36,0.00010819,2]
[348254923,1736421058375,-500.0,0.00010819,2]
[348254924,1736421058384,-492.92,0.00010819,2]
[348254925,1736421058394,-500.0,0.00010819,2]
[348254926,1736421058404,-401.6,0.00010819,2]
[348254927,1736421058413,-500.0,0.00010819,2]
[348254928,1736421058422,-500.0,0.00010819,2]
[348254929,1736421058431,-406.70483448,0.00010819,2]
[348254930,1736421058440,-500.0,0.00010819,2]
[348254931,1736421058449,-500.0,0.00010819,2]
[348254932,1736421058459,-500.0,0.00010819,2]
[348254933,1736421058467,-500.0,0.00010819,2]
[348254934,1736421058477,-500.0,0.00010819,2]
[348254935,1736421058486,-500.0,0.00010819,2]
[348254936,1736421058495,-176.80325298,0.00010819,2]
[348254937,1736421058504,-500.0,0.00010819,2]
[348254938,1736421058513,-564.29763418,0.00010819,2]
[348254939,1736421058522,-500.0,0.00010819,2]
[348254940,1736421058531,-230.52,0.00010819,2]
[348254941,1736421058541,-500.0,0.00010819,2]
[348254942,1736421058550,-500.0,0.00010819,2]
[348254943,1736421058559,-412.56949938,0.0001082,2]
[348254944,1736421058567,-500.0,0.0001082,2]
[348254945,1736421058576,-500.0,0.0001082,2]
[348254946,1736421058585,-500.0,0.0001082,2]
[348254947,1736421058594,-500.0,0.0001082,2]
[348254948,1736421058603,-500.0,0.0001082,2]
[348254949,1736421058613,-345.30354752,0.0001082,2]
[348254950,1736421058624,-500.0,0.0001082,2]
[348254951,1736421058633,-500.0,0.0001082,2]
[348254952,1736421058645,-500.0,0.0001082,2]
[348254953,1736421058656,-681.85,0.0001082,2]
[348254954,1736421058667,-500.0,0.0001082,2]
[348254955,1736421058676,-500.0,0.0001082,2]
[348254956,1736421058685,-500.0,0.0001082,2]
[348254957,1736421058695,-603.35,0.0001082,2]
[348254958,1736421058704,-210.22,0.0001082,2]
[348254959,1736421058713,-500.0,0.0001082,2]
[348254960,1736421058723,-500.0,0.0001082,2]
[348254961,1736421058732,-538.21,0.0001082,2]
[348254962,1736421058741,-5000.0,0.0001082,2]
[348254963,1736421058750,-642.23,0.0001082,2]
[348254964,1736421058760,-723.35,0.0001082,2]
[348254965,1736421058769,-1824.3,0.0001082,2]
[348254966,1736421058778,-630.51,0.0001082,2]
[348254967,1736421058787,-740.84,0.0001082,2]
[348254968,1736421058797,-990.37,0.0001082,2]
[348254969,1736421058806,-1761.09,0.0001082,2]
[348254970,1736421058815,-500.0,0.0001082,2]
[348254971,1736421058825,-638.43,0.0001082,2]
[348254972,1736421058834,-603.26,0.0001082,2]
[348254973,1736421058843,-1052.45,0.0001082,2]
[348254974,1736421058852,-703.34,0.0001082,2]
[348254975,1736421058861,-689.45,0.0001082,2]
[348254976,1736421058871,-500.0,0.0001082,2]
[348254977,1736421058880,-1767.37,0.0001082,2]
[348254978,1736421058889,-500.0,0.0001082,2]
[348254979,1736421058899,-500.0,0.0001082,2]
[348254980,1736421058908,-658.88,0.0001082,2]
[348254981,1736421058919,-649.65,0.0001082,2]
[348254982,1736421058928,-500.0,0.0001082,2]
[348254983,1736421058938,-1339.62,0.0001082,2]
[348254984,1736421058948,-508.59,0.0001082,2]
[348254985,1736421058957,-859.44,0.0001082,2]
[348254986,1736421058966,-611.84,0.00010821,2]
[348254987,1736421058975,-773.7,0.00010821,2]
[348254988,1736421058984,-953.76,0.00010821,2]
[348254989,1736421058994,-511.51,0.00010821,2]
[348254990,1736421059003,-500.0,0.00010821,2]
[348254991,1736421059013,-500.0,0.00010821,2]
[348254992,1736421059024,-1296.5,0.00010821,2]
[348254993,1736421059034,-500.0,0.00010821,2]
[348254994,1736421059044,-500.0,0.00010821,2]
[348254995,1736421059053,-500.0,0.00010821,2]
[348254996,1736421059063,-500.0,0.00010821,2]
[348254997,1736421059075,-532.94,0.00010821,2]
[348254998,1736421059085,-500.0,0.00010821,2]
[348254999,1736421059094,-500.0,0.00010821,2]
[348255000,1736421059104,-500.0,0.00010821,2]
[348255001,1736421059113,-500.0,0.00010821,2]
[348255002,1736421059123,-500.0,0.00010821,2]
[348255003,1736421059131,-500.0,0.00010821,2]
[348255004,1736421059140,-150.0,0.00010827,2]
[348255005,1736421059149,-2015.0,0.00010827,2]
[348255006,1736421059158,-1267.0,0.00010827,2]
[348255007,1736421059168,-150.0,0.00010827,2]
[348255008,1736421059177,-635.0,0.00010827,2]
[348255009,1736421059186,-566.0,0.00010827,2]
[348255010,1736421059195,-1861.0,0.00010827,2]
[348255011,1736421059205,-820.0,0.00010827,2]
[348255012,1736421059214,-915.0,0.00010827,2]
[348255013,1736421059223,-1258.0,0.00010827,2]
[348255014,1736421059233,-3777.0,0.00010827,2]
[348255015,1736421059245,-537.0,0.00010827,2]
[348255016,1736421059255,-3977.0,0.00010827,2]
[348255017,1736421059265,-3895.0,0.00010827,2]
[348255018,1736421059274,-150.0,0.00010827,2]
[348255019,1736421059283,-9622.0,0.00010827,2]
[348255020,1736421059293,-488.94281257,0.00010831,2]
[348255021,1736421059302,-488.94281257,0.00010934,2]
[348255022,1736421059311,-999.0,0.00010958,2]
[348255023,1736421059322,-150.0,0.00010959,2]
[348255024,1736421059331,-500.0,0.00010986,2]
[348255025,1736421059341,-550.0,0.00011,2]
[348255026,1736421059350,-488.94281257,0.00011038,2]
[348255027,1736421059359,-1611.58331674,0.0001105,2]
[348255028,1736421059368,-500.0,0.00011092,2]
[348255029,1736421059378,-346.13,0.00011092,2]
[348255030,1736421059387,-585.06,0.00011092,2]
[348255031,1736421059396,-560.68,0.00011092,2]
[348255032,1736421059405,-500.0,0.00011092,2]
[348255033,1736421059415,-500.0,0.00011092,2]
[348255034,1736421059424,-593.63,0.00011092,2]
[348255035,1736421059434,-500.0,0.00011092,2]
[348255036,1736421059444,-903.9,0.00011092,2]
[348255037,1736421059454,-500.0,0.00011092,2]
[348255038,1736421059463,-527.28,0.00011092,2]
[348255039,1736421059472,-500.0,0.00011092,2]
[348255040,1736421059482,-550.51,0.00011092,2]
[348255041,1736421059491,-883.08,0.00011092,2]
[348255042,1736421059501,-861.12,0.00011092,2]
[348255043,1736421059510,-961.9,0.00011092,2]
[348255044,1736421059519,-500.0,0.00011092,2]
[348255045,1736421059529,-594.7,0.00011092,2]
[348255046,1736421059538,-1708.05,0.00011092,2]
[348255047,1736421059547,-556.715961,0.00011092,2]
[348255048,1736421059556,-556.715961,0.00011092,2]